Cogmind - Beta 16 @@@ ROGUE MODE // 2026.01.11 @ 17:25:17 Player: polar Result: Destroyed by Superfortress with Graviton Cannon Performance ------------- Evolutions (8) 4000 Regions Visited (23) 4600 Robots Destroyed (263) 1315 Value Destroyed (12404) 12404 Prototype IDs (80) 1600 Alien Tech Used (2) 400 Bonus (8412) 8412 TOTAL SCORE: 32731 Bonus ------- High Alert Combat Kills 2775 Follower Combat Kills 3866 Network Hubs Disabled 600 Met Data Miner 300 Built Enhanced Grunts 300 A7 Reached Mainframe 300 Met R17 at Cetus 500 Hacked Protovariant 500 Met R17 at Research 2000 Scanned by Researcher 500 Friendly Fire -3229 Cogmind --------- Core Integrity 0/1450 Matter 260/300 Energy 99/100 System Corruption 25% Temperature Cool (0) Movement Core (50) Location -2/Protoforge Parts ------- > --- POWER (2) -------- (None) > --- PROPULSION (4) --- (None) > --- UTILITY (15) ----- Experimental Core Analyzer > --- WEAPON (3) ------- (None) > --- INVENTORY (5) ---- Experimental Signal Interpreter Concept Weapon Articulator Concept Weapon Articulator Concept XC Strikerail Experimental Terror Saw Peak State ------------ > --- POWER ------------ Quantum-Particle Reactor > --- PROPULSION ------- Thunder-Shield Exoskeleton > --- UTILITY ---------- Armored Scrap Engine Advanced Heat Sink Quantum Shading Machine Advanced Visual Processing Unit Seismic Detector Experimental Targeting Computer Experimental Core Analyzer Experimental Core Analyzer Improved Cloaking Device Improved Hacking Suite Advanced Hacking Suite System Mapper Advanced System Shield Advanced Corruption Screen > --- WEAPON ----------- Prc. Kinetic Strikerail Construct/G Shock Maul Vibroblade > --- INVENTORY -------- Matter Drive Experimental Focal Shield Advanced Thermal Shield Advanced Force Field Subatomic Replicator [Rating: 179] Favorites ----------- Power Constructs Engine Light Ion Engine Power Core Light Nuclear Core Reactor Constructs Propulsion Constructs Treads Advanced Treads Leg Constructs Wheel Wheel Flight Unit Xenon Bombardment Thruster Utility Huge Storage Unit Device Armored Scrap Engine Storage Huge Storage Unit Processor Experimental Core Analyzer Hackware Improved Hacking Suite Protection Makeshift Kinetic Plating Weapon Constructs Energy Gun Advanced Beam Rifle Energy Cannon Improved EM Pulse Cannon Ballistic Gun Constructs Ballistic Cannon Improved Light Cannon Launcher Improved Proton Missile Launcher Special Weapon Improved Plasma Cutter Impact Weapon Shock Maul Slashing Weapon Vibroblade Piercing Weapon Enhanced Force Lance Build | -11 -10 -10 -8 -8 -8 -6 -6 -6 -6 -5 -5 -5 -5 -5 -5 -5 -5 -4 -3 -3 -2 -2 -2 ------- Run | Yrd Mat Sub Mat Sto Rec Fac Low Low Dat Pro Fac Was Fac Ext Cet Arc Hub Fac Res Tes Res Qua Frg Slots Evolved 16 | . . . 4 . . 4 . . . . 2 . . . . . . 2 2 . 2 . . Power . | . . . . . . . . . . . . . . . . . . . . . . . . Propulsion 2 | . . . 1 . . 1 . . . . . . . . . . . . . . . . . Utility 13 | . . . 3 . . 2 . . . . 2 . . . . . . 2 2 . 2 . . Weapon 1 | . . . . . . 1 . . . . . . . . . . . . . . . . . Parts Attached 258 | 8 11 21 9 12 11 13 9 2 11 1 16 2 2 12 8 3 12 35 20 17 1 5 17 Power 13 | 1 1 3 . 1 . . . . 2 . 1 . . . . . . . 1 . . . 3 Engine 7 | 1 1 3 . 1 . . . . 1 . . . . . . . . . . . . . . Core 2 | . . . . . . . . . 1 . 1 . . . . . . . . . . . . Reactor 4 | . . . . . . . . . . . . . . . . . . . 1 . . . 3 Propulsion 31 | 2 2 9 2 3 2 1 . . . . . . . 1 . 1 1 4 2 1 . . . Treads 10 | . 2 2 1 3 1 . . . . . . . . . . 1 . . . . . . . Leg 8 | . . . . . . . . . . . . . . . . . 1 4 2 1 . . . Wheel 12 | 2 . 7 1 . 1 1 . . . . . . . . . . . . . . . . . Hover . | . . . . . . . . . . . . . . . . . . . . . . . . Flight 1 | . . . . . . . . . . . . . . 1 . . . . . . . . . Utility 152 | 3 3 7 3 6 5 9 5 2 8 1 9 2 2 8 6 1 9 26 12 11 1 5 8 Device 84 | 2 1 3 2 5 3 4 2 2 4 . 4 . 1 2 3 1 5 18 4 7 1 3 7 Storage 12 | 1 2 1 . . . 1 1 . 1 1 . . . 2 . . 1 . . . . 1 . Processor 17 | . . . . . 1 1 . . . . 2 . . . . . 1 4 6 2 . . . Hackware 9 | . . . . . . . . . . . 2 . . 1 . . . 2 2 2 . . . Protection 30 | . . 3 1 1 1 3 2 . 3 . 1 2 1 3 3 . 2 2 . . . 1 1 Artifact . | . . . . . . . . . . . . . . . . . . . . . . . . Weapon 62 | 2 5 2 4 2 4 3 4 . 1 . 6 . . 3 2 1 2 5 5 5 . . 6 Energy Gun 11 | 2 . . 2 . 1 1 . . . . 1 . . . 1 . . 1 . . . . 2 Energy Cannon 8 | . . . 1 2 . 1 . . 1 . . . . . . . 1 1 1 . . . . Ballistic Gun 7 | . . . . . 1 . . . . . . . . 2 . 1 . 1 . 1 . . 1 Ballistic Cannon 4 | . 3 1 . . . . . . . . . . . . . . . . . . . . . Launcher 11 | . 1 . . . 1 . 1 . . . 1 . . . 1 . . 1 2 2 . . 1 Special Weapon 4 | . . . 1 . 1 . . . . . . . . 1 . . 1 . . . . . . Impact Weapon 5 | . 1 . . . . 1 2 . . . . . . . . . . . . 1 . . . Slashing Weapon 5 | . . 1 . . . . . . . . . . . . . . . . 1 1 . . 2 Piercing Weapon 7 | . . . . . . . 1 . . . 4 . . . . . . 1 1 . . . . Special Melee Weapon . | . . . . . . . . . . . . . . . . . . . . . . . . Unidentified Prototypes 33 | . . . 1 1 1 . . . 2 . . . . 1 2 1 3 3 3 10 . . 5 Corrupted Parts 1 | . . . . . . . . . . . . . . . . 1 . . . . . . . System Corruption 4 | . . . . . . . . . . . . . . . . 4 . . . . . . . Parts Lost 107 | . . 4 . 6 . 4 . . 6 . 5 . 1 1 . . . 28 7 8 . 5 32 Power 7 | . . . . 1 . 1 . . . . . . . . . . . 3 . . . 1 1 Propulsion 15 | . . 2 . 2 . 1 . . . . . . . . . . . 3 1 1 . . 5 Utility 62 | . . 2 . 1 . 1 . . 4 . 5 . 1 . . . . 14 4 5 . 4 21 Weapon 23 | . . . . 2 . 1 . . 2 . . . . 1 . . . 8 2 2 . . 5 Highest Loss Streak 16 | . . 1 . 5 . 1 . . 5 . 3 . 1 1 . . . 10 4 4 . 2 16 To Critical Strikes 2 | . . . . . . . . . . . . . . . . . . 2 . . . . . Average Backups 17 | 2 7 17 21 22 22 22 22 22 21 24 23 21 21 20 20 21 21 21 4 4 4 7 5 Power . | . . 1 2 2 1 1 . . . 1 . . . . . . . . . . . . . Propulsion 1 | 1 2 3 4 5 4 1 1 1 . . . 1 1 . . . . . . . . . . Utility 10 | . 4 5 2 3 7 18 16 16 17 18 16 13 14 13 14 17 17 17 3 3 3 4 4 Weapon 3 | . 1 6 11 10 8 1 2 2 1 3 4 4 4 4 4 2 2 2 . . . . . Tool/Special . | . . . . . . . . . . . . . . . . . . . . . . . . Unused Backups 54 | . 3 . 2 . 5 9 3 . 2 . 1 1 . 4 1 . 1 8 3 5 . 2 4 Power 1 | . . . . . . . 1 . . . . . . . . . . . . . . . . Propulsion 7 | . . . . . . 2 1 . 1 . . 1 . 1 . . . . 1 . . . . Utility 32 | . 2 . . . . 6 . . 1 . . . . 3 . . 1 8 2 4 . 2 3 Weapon 13 | . 1 . 2 . 5 1 1 . . . 1 . . . 1 . . . . 1 . . . Tool/Special 1 | . . . . . . . . . . . . . . . . . . . . . . . 1 Average Slot Usage (%) 73 | . 99 99 93 93 76 60 64 66 60 37 61 67 70 67 65 62 63 66 77 74 78 77 61 Engine 3 | . 13 14 9 6 5 5 5 . . . . . . . . . . . . . . . . Core 1 | . . . . . 3 . . 6 6 6 5 5 5 5 . . . . . . 4 4 . Reactor 1 | . . . . . . . . . . . . . . . 4 5 5 3 5 3 . . 4 Treads 5 | . 25 2 9 24 16 . . . . . . 5 5 1 . . . . 1 . . 2 . Leg 1 | . . . . . . . . . . . . . . . . . . 2 9 3 . . 3 Wheel 3 | . 1 24 18 1 . 2 6 6 6 6 4 . . . . . . . 1 . . . . Hover 1 | . . . . . . 4 . . . . . . . 3 5 5 4 2 . . 4 1 . Device 13 | . 13 1 13 18 12 13 13 16 12 6 12 13 11 15 11 15 14 23 17 14 19 18 10 Storage 6 | . 14 14 9 9 9 7 6 6 6 6 5 5 5 5 5 5 5 4 . . . 2 1 Processor 6 | . . . . . . 1 6 6 6 6 10 11 11 11 5 5 5 8 14 20 20 17 15 Hackware 4 | . . . . . . . . . . . 9 5 5 5 5 5 3 2 17 18 16 16 15 Protection 7 | . . 12 17 14 14 8 12 9 7 6 . 4 9 5 14 11 8 7 . . . . . Energy Gun 2 | . 2 . 1 . . 6 3 12 10 . 2 5 4 1 . . . 1 4 . . . 1 Energy Cannon 2 | . . . 4 17 6 1 5 . . . . . . . . . 3 2 2 4 . . . Ballistic Cannon 4 | . 24 21 2 . 3 2 . . . . . . . . . . . 1 . . . . . Impact Weapon 1 | . . 5 . . . . . . 4 . . . . . . . . . . 2 4 4 . Slashing Weapon 1 | . . 1 9 . 2 . . . . . . . . . . . . . . 1 4 4 3 Piercing Weapon 1 | . . . . . . . . . . . 7 11 10 6 9 5 5 3 . 1 . . . Peak Build Rating 179 | 9 10 20 34 39 54 75 78 80 77 66 115 113 113 117 129 127 143 163 147 166 168 179 174 Average Rating 83 | 6 9 14 30 35 43 66 72 75 71 59 88 109 110 108 121 121 127 125 117 152 167 170 134 On Entrance 84 | . 7 9 18 33 39 48 71 76 74 66 60 104 112 107 111 118 125 141 78 139 158 168 159 Avg Prop Armor Cover (%) 9 | . . 8 7 10 6 2 . . . . . . . . . . . 11 10 10 . . 36 Naked Turns . | . . . . . . . . . . . . . . . . . . . . . . . . Heaviest Build 183 | 12 19 100 113 116 116 140 121 112 133 115 147 149 144 143 150 145 183 174 62 61 59 74 72 Greatest Support 169 | 26 40 40 30 66 66 48 36 28 48 48 60 48 48 48 48 48 48 78 83 106 74 169 149 Greatest Overweight (x) 11 | . 5 9 11 6 6 8 4 3 3 2 3 3 2 2 3 3 3 5 2 2 . . 1 Average Overweight (x) 1 | . . 2 3 1 1 2 2 3 2 2 1 2 2 2 2 2 2 2 . . . . . Largest Inventory Capacity 25 | 8 8 25 25 25 25 25 25 25 25 25 25 25 25 25 25 25 25 25 5 5 5 10 10 Average Capacity 19 | 7 8 21 25 25 25 25 25 25 25 25 25 25 25 25 25 25 25 24 5 5 5 7 6 Most Carried 25 | 6 8 25 25 25 25 25 25 25 25 25 25 25 25 25 25 25 25 25 5 5 5 10 10 Average Carried 18 | 2 7 19 24 24 24 24 24 24 22 24 24 24 24 24 24 24 24 22 4 4 3 7 5 Final Capacity 25 | 8 8 25 25 25 25 25 25 25 25 25 25 25 25 25 25 25 25 5 5 5 5 10 5 Final Carried 25 | 6 8 25 25 25 25 25 24 25 22 25 24 25 25 23 25 25 25 5 5 5 5 10 5 Scrap Engine Consumption 245 | . . . . . 29 23 5 2 4 3 12 5 4 17 9 5 9 22 41 29 2 7 17 Constructs Created 19 | . . . . . 3 1 1 . . . 1 . . . . . 2 3 4 2 . . 2 Constructs Modified 71 | . . . . . 6 6 2 1 2 . 4 2 1 6 2 . 3 8 10 11 . 1 6 Class Distribution -------------------- 31% | Commander-Mutant 26% | Mutant 12% | Wizard-Mutant 11% | Commander-Construct 10% | Hacker-Mutant 7% | Scavenger-Mutant Dominant Class ---------------- Mutant | -10/Materials Mutant | -10/Subcaves Mutant | -8/Materials Commander-Mutant | -8/Storage Commander-Mutant | -8/Recycling Commander-Construct | -6/Factory Commander-Mutant | -6/Lower Caves Commander-Construct | -6/Lower Caves Commander-Mutant | -6/Data Miner Mutant | -5/Proximity Caves Hacker-Mutant | -5/Factory Mutant | -5/Waste Mutant | -5/Factory Commander-Mutant | -5/Extension Commander-Mutant | -5/Cetus Commander-Mutant | -5/Archives Scavenger-Mutant | -5/Hub_04(d) Scavenger-Mutant | -4/Factory Hacker-Mutant | -3/Research Wizard-Mutant | -3/Testing Wizard-Mutant | -2/Research Wizard-Mutant | -2/Quarantine Wizard-Mutant | -2/Protoforge Resources | -11 -10 -10 -8 -8 -8 -6 -6 -6 -6 -5 -5 -5 -5 -5 -5 -5 -5 -4 -3 -3 -2 -2 -2 ----------- Run | Yrd Mat Sub Mat Sto Rec Fac Low Low Dat Pro Fac Was Fac Ext Cet Arc Hub Fac Res Tes Res Qua Frg Matter Collected 7482 | 280 516 850 140 218 196 616 214 96 158 10 229 128 109 585 155 129 519 893 477 387 . 133 444 Remotely . | . . . . . . . . . . . . . . . . . . . . . . . . Salvage Created 11862 | 139 516 208 137 373 283 1283 148 230 212 8 673 292 212 472 74 31 1326 2123 554 1193 . 260 1115 Parts 575 | 9 39 16 6 25 10 65 5 10 4 . 26 2 8 25 9 5 73 107 30 31 . 9 61 Haulers Intercepted 3 | . 2 . 1 . . . . . . . . . . . . . . . . . . . . Recyclers Shooed 11 | . . . . . 1 1 . . . . 1 . . 1 . . . 3 . . . 4 . Parts Field Recycled 9 | . . . . . . . . . 9 . . . . . . . . . . . . . . Retrieved Matter 45 | . . . . . . . . . 45 . . . . . . . . . . . . . . Parts Self-Destructed 6 | . . 5 . . . . . 1 . . . . . . . . . . . . . . . Prevented 4 | . . . . . . . 1 3 . . . . . . . . . . . . . . . Parts Restored . | . . . . . . . . . . . . . . . . . . . . . . . . Kills | -11 -10 -10 -8 -8 -8 -6 -6 -6 -6 -5 -5 -5 -5 -5 -5 -5 -5 -4 -3 -3 -2 -2 -2 ------- Run | Yrd Mat Sub Mat Sto Rec Fac Low Low Dat Pro Fac Was Fac Ext Cet Arc Hub Fac Res Tes Res Qua Frg Combat Hostiles Destroyed 182 | . 17 13 . 4 1 17 1 6 3 1 13 1 5 10 . . 14 35 8 16 . 1 16 Melee 47 | . . . . . . . . . . 1 3 . 1 4 . . 8 16 . 7 . . 7 Guns 29 | . . . . . . 11 . 2 . . 1 1 . 2 . . . 1 6 . . 1 4 Cannons 44 | . 14 7 . 4 1 3 1 . . . . . . . . . 2 2 1 4 . . 5 AOE 45 | . 3 5 . . . 1 . 4 . . 8 . 4 4 . . 1 15 . . . . . Classes Destroyed 24 | 2 7 1 . 2 . 2 1 . . 1 1 1 . 1 . . 1 1 1 2 . . . Worker 17 | . 1 . . 2 . 4 . . . . 3 . 2 . . . 4 . . 1 . . . Builder 19 | . . . . 1 . 7 . . . . 2 . . . . . 4 4 . . . 1 . Tunneler 2 | 2 . . . . . . . . . . . . . . . . . . . . . . . Hauler 3 | . 2 . 1 . . . . . . . . . . . . . . . . . . . . Recycler 11 | 1 . . 1 1 . . . . . . 1 . . . . . 1 4 . 1 . 1 . Mechanic 2 | . 1 . . . . . . . . . . . . . . . . 1 . . . . . Operator 5 | . 1 . . 1 . . . . . . . . . 1 . 1 . 1 . . . . . Drone 1 | . . . . . . . . . . 1 . . . . . . . . . . . . . Watcher 16 | . 3 . 1 . . 3 . . . . 3 . . 1 . . 2 . . 2 . 1 . Swarmer 41 | . 6 4 . . . 1 . 4 . . 9 . . 4 . . . 7 1 5 . . . Cutter 3 | . . . . . . . . . . . . . . . . . . 3 . . . . . Grunt 39 | . 11 . . 1 . 7 . . . . 1 . 4 . . . 1 7 3 3 . 1 . Brawler 2 | . . . . . . 2 . . . . . . . . . . . . . . . . . Protector 2 | . . . . . . . . . . . . . . . . . 1 . 1 . . . . Researcher 1 | . . . . . . . . . . . . . . . . . . . . 1 . . . Sentry 18 | . . . . 3 1 2 . 1 . . . . . 4 . . 3 1 1 . . . 2 Demolisher 1 | . . . . . . . 1 . . . . . . . . . . . . . . . . Hunter 18 | . . . . . . . . . . . 3 . 1 1 . . 1 11 1 . . . . Programmer 20 | . . . . . . 5 . . . . . . . . . . 2 6 . 7 . . . Behemoth 1 | . . . . . . . . . . . . . . 1 . . . . . . . . . Compactor 1 | . . . . . . . . . . . . 1 . . . . . . . . . . . Enhanced Grunt 3 | . . . . . . . . . 3 . . . . . . . . . . . . . . Lightning 6 | . . . . . . . . . . . . . . . . . 6 . . . . . . Hotshot 10 | . . . . . . . . . . . . . . . . . . . . . . . 10 Decapitator 4 | . . . . . . . . . . . . . . . . . . . . . . . 4 Investigator 1 | . . . . . . . . . . . . . . . . . . . . 1 . . . Executioner 1 | . . . . . . . . . . . . . . . . . . . 1 . . . . Protovariant L 1 | . . . . . . . . . . . . . . . . . . . . 1 . . . Subdweller 9 | . . 9 . . . . . . . . . . . . . . . . . . . . . Wasp 2 | . . . . . . . . . . . . . 2 . . . . . . . . . . Thug 2 | . . . . . . . 1 1 . . . . . . . . . . . . . . . Best Kill Streak 12 | 2 5 4 1 3 1 6 1 4 2 1 10 1 6 4 . 1 6 12 3 5 . 1 4 Combat Bots Only 9 | . 5 4 . 1 1 3 1 4 2 1 5 1 4 4 . . 2 9 3 5 . 1 4 Max Kills in Single Turn 6 | 1 4 4 1 2 1 2 1 2 1 1 5 1 2 4 1 1 6 4 1 1 . 1 1 Gunslinging . | . . . . . . . . . . . . . . . . . . . . . . . . Exploded 4 | . 3 4 . . . 1 . 2 . . 4 . 1 4 . . 1 3 . . . . . Melee 1 | . . . . . . . . . . 1 1 . 1 1 . . 1 1 . 1 . . 1 Uniques/NPCs Destroyed 1 | . . . . . . . . . . . . . . . 1 . . . . . . . . A7 (-5/Cetus) Combat | -11 -10 -10 -8 -8 -8 -6 -6 -6 -6 -5 -5 -5 -5 -5 -5 -5 -5 -4 -3 -3 -2 -2 -2 -------- Run | Yrd Mat Sub Mat Sto Rec Fac Low Low Dat Pro Fac Was Fac Ext Cet Arc Hub Fac Res Tes Res Qua Frg Hostile Shots Fired 2451 | . 42 71 . 56 . 178 23 11 42 . 152 . 16 114 7 . 293 687 98 145 . 146 370 Missed 693 | . 13 28 . 10 . 57 9 2 11 . 45 . 2 35 1 . 52 233 26 39 . 43 87 Deflected 59 | . . . . . . . . . . . . . . . . . . . . . . . 59 Hits 1758 | . 29 43 . 46 . 121 14 9 31 . 107 . 14 79 6 . 241 454 72 106 . 103 283 Melee 37 | . . . . . . 6 . . . . 1 . . . . . . 2 . 17 . . 11 Projectile 1721 | . 29 43 . 46 . 115 14 9 31 . 106 . 14 79 6 . 241 452 72 89 . 103 272 AOE 18 | . . . . . . . . . . . . . . . . . 1 5 1 . . 2 9 Critical Strikes 119 | . 1 2 . 4 . 8 . . . . 4 . 1 10 5 . 25 18 2 15 . 1 23 Part Disruptions 1 | . . . . . . . . . . . . . . . . . . . . 1 . . . Damage Taken 30059 | . 363 753 . 734 . 1756 141 109 1396 . 1713 52 344 1852 289 26 851 6848 1227 2504 . 1830 7271 Core 3904 | . 36 119 . 47 . 202 18 12 224 . 290 . . 217 89 . 60 455 303 354 . 206 1272 Absorbed by Shields 2570 | . . . . . . 11 41 31 . . . . . . 101 25 695 688 155 453 . 315 55 Redirected to Shielding 321 | . . . . . . 26 18 13 61 . . . 91 . . . . . . . . . 112 Ignored by Resistances 8052 | . . . . 12 . 178 . . . . 38 . . 54 . . 7422 82 61 32 . 173 . Regen/Repaired (Parts) 6439 | . . . . 31 5 305 79 80 185 100 662 343 50 822 432 . 78 878 431 855 . . 1103 Core Remaining (%) 59 | 100 . 38 . . 91 . . . . 46 . . . . . . 34 60 . 49 . . . Volleys Fired 611 | 7 46 42 6 23 3 105 10 7 7 . 16 4 12 44 6 1 34 57 66 46 . 26 43 Largest 3 | 2 2 2 1 2 2 3 1 2 2 . 1 1 1 1 1 1 2 2 3 2 . 1 2 Hottest 211 | 90 90 66 69 138 58 160 75 138 138 . 71 71 71 71 33 35 133 193 211 93 . 58 152 Shots Fired 830 | 14 93 73 6 30 4 140 12 11 13 . 16 4 11 44 6 2 56 81 84 50 . 26 54 Gun 358 | 14 6 . 1 . . 86 1 6 10 . 8 4 5 35 6 2 34 19 70 1 . 26 24 Cannon 420 | . 86 67 5 30 3 54 11 2 3 . . . . . . . 22 46 14 49 . . 28 Launcher 51 | . 1 6 . . . . . 3 . . 8 . 6 9 . . . 16 . . . . 2 Special 1 | . . . . . 1 . . . . . . . . . . . . . . . . . . Kinetic 430 | . 86 67 2 . . 43 . . . . 7 . . 26 6 2 34 14 59 43 . . 41 Thermal 209 | 14 6 . 1 . 1 43 1 2 4 . 1 4 5 9 . . 22 47 11 1 . 26 11 Explosive 42 | . 1 6 . . . . . . . . 3 . 6 9 . . . 16 . . . . 1 Electromagnetic 148 | . . . 3 30 3 54 11 9 9 . 5 . . . . . . 4 14 6 . . . Robot Hit Streak 21 | 8 8 19 21 5 3 10 9 7 7 . 9 8 3 11 2 3 8 10 19 11 . 3 19 Robot Miss Streak 5 | 1 4 3 1 2 1 5 1 1 1 . 3 1 3 2 2 . 4 3 3 2 . 2 1 Penetration Max 2 | . . . . . . 2 . . . . . . . 1 . . 1 1 2 . . . 1 Secondary Targets 1 | . . . . . . 1 . . . . . . . . . . . . . . . . . Max Gunslinging Chain 1 | . . . . . . 1 . . . . . . . . . . . . . . . . . Shots Hit Robots 766 | 11 52 51 6 20 9 97 8 8 21 1 16 3 5 36 17 3 84 95 36 88 . 12 87 Core Hits 414 | 4 29 21 3 12 5 48 3 7 7 . 27 1 14 19 7 . 46 79 15 26 . 5 36 Critical Kills 11 | . . . . . . 2 . . . . . . . . . . 1 1 2 3 . . 2 Critical Parts Destroyed 33 | . . 1 . . . 4 . . 4 . 2 . . . . . . 2 1 18 . 1 . Critical Strikes 89 | . 5 7 2 . . 13 . . 7 . 2 . 1 4 . . 9 10 4 21 . 1 3 Burn 8 | . . . . . . 6 . . 1 . . . . . . . . . . . . . 1 Meltdown 2 | . . . . . . . . . . . . . . . . . 1 1 . . . . . Destroy 16 | . . . . . . 6 . . . . . . . . . . . 2 3 3 . . 2 Blast 13 | . 5 6 1 . . 1 . . . . . . . . . . . . . . . . . Corrupt 3 | . . . . . . . . . 2 . . . . . . . . . 1 . . . . Smash 26 | . . 1 . . . . . . 4 . 2 . . . . . . . . 18 . 1 . Sever 1 | . . . 1 . . . . . . . . . . . . . . . . . . . . Impale 20 | . . . . . . . . . . . . . 1 4 . . 8 7 . . . . . Melee Attacks 532 | . 29 44 4 . 7 9 1 . 15 1 28 3 7 16 20 1 96 78 6 61 5 39 62 Impact 172 | . 29 43 . . . 9 1 . 15 1 3 . . . . . . . . 43 . 27 1 Slashing 105 | . . 1 4 . 7 . . . . . . . . . . . . . 6 9 5 12 61 Piercing 255 | . . . . . . . . . . . 25 3 7 16 20 1 96 78 . 9 . . . Sneak Attacks 26 | . . 1 1 . . . . . 1 1 . . . 1 12 1 . 5 . 2 . 1 . Combat Hostiles 2 | . . . . . . . . . . 1 . . . . . . . . . 1 . . . Follow-up Attacks 13 | . . . . . . . . . . . 2 . . 2 3 . . . . 5 . 1 . Damage Inflicted 34971 | 134 1240 1478 256 801 493 3280 425 348 646 92 1735 134 822 1939 947 189 4740 5970 933 3481 . 703 4185 Guns 6252 | 134 36 . . . . 1925 20 110 120 . 263 134 103 842 69 68 618 453 616 . . 217 524 Cannons 8117 | . 1038 909 137 660 53 894 276 28 63 . . . . . . . 432 942 317 886 . . 1482 Explosions 7230 | . 163 389 . 141 . 420 129 210 . . 1146 . 688 558 . . 1298 2019 . 69 . . . Melee 13366 | . . 180 119 . 437 41 . . 463 92 326 . 31 539 878 121 2392 2556 . 2526 . 486 2179 Ramming 3 | . 3 . . . . . . . . . . . . . . . . . . . . . . Kinetic 7944 | . 1038 909 53 . . 1265 . . . . 243 . . 565 69 68 618 197 458 626 . . 1835 Thermal 4460 | 134 36 . . 141 3 866 149 22 56 . 46 134 103 277 . . 460 1418 158 69 . 217 171 Explosive 4459 | . 163 389 . . . 214 . . . . 837 . 688 558 . . . 1610 . . . . . Electromagnetic 4739 | . . . 84 660 53 894 276 326 127 . 283 . . . . . 1270 189 317 260 . . . Impact 3367 | . . 116 . . . 41 . . 463 92 154 . . . . . . . . 2015 . 486 . Slashing 3155 | . . 64 119 . 437 . . . . . . . . . . . . . . 356 . . 2179 Piercing 6844 | . . . . . . . . . . . 172 . 31 539 878 121 2392 2556 . 155 . . . Highest Corruption 39 | . 7 7 . . . 7 5 2 . . 3 18 18 18 18 22 39 9 1 1 . 3 25 Average Corruption 9 | . 6 7 . . . 4 3 1 . . 1 14 18 18 18 19 26 4 1 1 . 2 8 Corruption Purged 17 | . . . . . . 6 3 2 . . . . . . . . . 6 . . . . . Corruption Blocked 15 | . . . . . . . . . . . . . . . . . . . . 15 . . . Effects 438 | . 14 64 . . . 21 30 . . . 1 9 22 68 34 8 77 23 10 12 . . 45 Message Errors 100 | . 2 14 . . . 6 7 . . . 1 3 1 18 10 . 16 5 5 2 . . 10 Matter Fused 112 | . 1 19 . . . 6 8 . . . . 1 3 18 15 2 18 3 2 2 . . 14 Heat Flow Errors 48 | . 1 8 . . . 2 4 . . . . 1 2 9 1 1 3 2 2 3 . . 9 Energy Discharges 64 | . 5 8 . . . 1 5 . . . . 1 8 9 1 1 14 5 1 3 . . 2 Parts Rejected 6 | . . 1 . . . 1 . . . . . . . . . . . 2 . . . . 2 Parts Fused 4 | . . . . . . . . . . . . . 1 1 . . 1 . . . . . 1 Data Loss (minor) 51 | . 3 7 . . . 4 2 . . . . 1 4 8 3 2 12 2 . . . . 3 Data Loss (major) 23 | . . 5 . . . 1 1 . . . . 2 . 2 2 1 5 1 . 1 . . 2 Misfires 10 | . 2 1 . . . . 2 . . . . . . . . 1 3 1 . . . . . Alerts 9 | . . 1 . . . . 1 . . . . . 1 . 2 . . 2 . 1 . . 1 Misdirections 9 | . . . . . . . . . . . . . 1 3 . . 4 . . . . . 1 Weapon Failures 2 | . . . . . . . . . . . . . 1 . . . 1 . . . . . . Overload Shots . | . . . . . . . . . . . . . . . . . . . . . . . . Overflow Damage 2887 | . 14 33 15 21 . 28 71 . 244 68 213 . . 10 1 76 111 604 . 1186 . 192 . Projectiles 130 | . 14 . . 21 . 28 34 . . . . . . . . . . 26 . 7 . . . Explosions 405 | . . . . . . . 37 . . . 94 . . . . . 44 230 . . . . . Melee 2352 | . . 33 15 . . . . . 244 68 119 . . 10 1 76 67 348 . 1179 . 192 . Knockbacks 89 | . 11 10 . . . 1 . . 5 . . . . . . . . 8 . 30 . 4 20 Impact 20 | . . . . . . 1 . . 5 . . . . . . . . . . 10 . 4 . Kinetic 58 | . 9 10 . . . . . . . . . . . . . . . 6 . 19 . . 14 Secondary 11 | . 2 . . . . . . . . . . . . . . . . 2 . 1 . . 6 Self-Inflicted Damage 621 | . . 20 . . . 33 . . . . 104 . 60 . . . 26 297 . 81 . . . Shots 20 | . . 1 . . . 1 . . . . 5 . 1 . . . 3 8 . 1 . . . Rammed 1 | . 1 . . . . . . . . . . . . . . . . . . . . . . Targets Rammed 1 | . 1 . . . . . . . . . . . . . . . . . . . . . . Kicked . | . . . . . . . . . . . . . . . . . . . . . . . . Crushed . | . . . . . . . . . . . . . . . . . . . . . . . . Highest Temperature 455 | 120 110 250 80 244 . 198 176 126 195 . 145 213 254 455 175 144 342 333 455 302 . . 196 Average Temperature 88 | 48 25 111 34 77 . 91 59 58 111 . 51 90 94 106 101 93 83 129 91 103 . . 74 Received Heat Transfer 3939 | . 147 108 . 432 . 414 19 . . . 42 . 99 471 25 4 83 443 149 48 . 36 1419 Effects 5 | . . . . . . . . . . . . . . 2 . . 1 1 1 . . . . Shutdowns 1 | . . . . . . . . . . . . . . 1 . . . . . . . . . Interference 2 | . . . . . . . . . . . . . . 1 . . . 1 . . . . . Damage (minor) 2 | . . . . . . . . . . . . . . . . . 1 . 1 . . . . Siege Activations . | . . . . . . . . . . . . . . . . . . . . . . . . Martial Activations . | . . . . . . . . . . . . . . . . . . . . . . . . Shielding Activations 5 | . . . . . . . . . . . . . . . . . . . . . . . 5 Total Turns 253 | . . . . . . . . . . . . . . . . . . . . . . . 253 Longest Duration 101 | . . . . . . . . . . . . . . . . . . . . . . . 101 Robots Disrupted 2 | . . . . . . . . . . . 1 . . . . . . . . 1 . . . Combat Hostiles 1 | . . . . . . . . . . . . . . . . . . . . 1 . . . Robots Corrupted 20 | . . 1 . . . 2 . . 3 . 2 . . . . . 3 . 1 7 . 1 . Combat Hostiles 14 | . . 1 . . . 2 . . 3 . 1 . . . . . 1 . 1 5 . . . Parts Fried 47 | . . . . 5 . 8 . 1 1 1 8 . . . . . 5 . . 17 . 1 . Impact Corruptions 55 | . . 2 . . . . . . 8 1 3 . . . . . . . . 36 . 5 . Robots Melted 3 | . . . . . . . . . . . . . . . . . 2 1 . . . . . Combat Hostiles 3 | . . . . . . . . . . . . . . . . . 2 1 . . . . . Parts Melted 15 | . . . . . . 8 . . . . . . . . . . 5 2 . . . . . Heat Transferred 5823 | 359 99 . . 100 25 1767 127 37 222 . 87 . . 333 . . 700 1046 325 50 . 250 296 Parts Sabotaged 5 | . . . . . . . . . . . 2 . . . . . . 3 . . . . . Parts Stolen . | . . . . . . . . . . . . . . . . . . . . . . . . Parts Stripped . | . . . . . . . . . . . . . . . . . . . . . . . . Power Chain Reactions 8 | . . . . 1 . 2 1 1 . . 1 . . . . . 1 . . 1 . . . Alert | -11 -10 -10 -8 -8 -8 -6 -6 -6 -6 -5 -5 -5 -5 -5 -5 -5 -5 -4 -3 -3 -2 -2 -2 ------- Run | Yrd Mat Sub Mat Sto Rec Fac Low Low Dat Pro Fac Was Fac Ext Cet Arc Hub Fac Res Tes Res Qua Frg Maximum Alert Level 5 | . 1 . . . . 1 . . . . 1 . 1 3 2 1 5 4 2 1 . . . Low Security (%) 61 | 100 98 . 100 100 100 56 . . . . 47 100 71 20 . . 4 . . 95 100 100 100 Level 1 11 | . 1 . . . . 43 . . . . 52 . 28 39 . 100 7 . 6 4 . . . Level 2 12 | . . . . . . . . . . . . . . 17 100 . 13 . 93 . . . . Level 3 7 | . . . . . . . . . . . . . . 23 . . 23 54 . . . . . Level 4 4 | . . . . . . . . . . . . . . . . . 18 45 . . . . . Level 5 2 | . . . . . . . . . . . . . . . . . 32 . . . . . . High Security . | . . . . . . . . . . . . . . . . . . . . . . . . Max Security . | . . . . . . . . . . . . . . . . . . . . . . . . Peak Influence 2042 | 5 209 . 31 118 34 346 . . . . 382 99 356 940 685 375 2042 1282 644 212 114 84 129 Initial 996 | . . . 31 . 26 150 . . . . 150 99 . 162 515 214 113 996 644 212 103 29 40 Average 304 | 1 70 . 6 48 5 167 . . . . 256 37 144 447 581 334 1177 1089 489 105 84 12 38 Influence Increases 12253 | 15 522 110 21 464 197 1029 7 165 . 5 680 26 666 1410 410 221 2851 1514 354 688 30 320 548 Destroy 0b10 Robot/C 4660 | . 340 80 . 140 40 380 . 100 . . 260 . 200 560 160 80 760 700 140 380 . 20 320 Destroy 0b10 Robot/NC 510 | 15 40 . 15 35 20 80 5 . . 5 45 . 30 20 10 5 95 50 5 20 . 15 . Destroy Leader 880 | . 90 . 4 42 . 128 . 10 . . 46 . 42 56 . . 196 130 40 44 . 2 50 Allied During Kill 1923 | . . . . 146 22 78 2 55 . . . . 191 497 170 85 671 . . 6 . . . Successful Hack 333 | . 14 . . 7 22 . . . . . 20 . 14 28 20 . 14 11 52 45 . 46 40 Select Force Hacks 110 | . . . . . 90 20 . . . . . . . . . . . . . . . . . Disable Machine 900 | . 15 . . 15 . 60 . . . . 45 . 75 60 . 45 375 60 30 45 . 30 45 Anti-Garrison Action 150 | . . . . . . . . . . . . . . . . . 150 . . . . . . Destroy Structure 1587 | . 23 . 2 4 3 58 . . . . 84 26 114 174 50 6 560 338 12 28 15 72 18 Advance Influence 300 | . . . . . . 150 . . . . 150 . . . . . . . . . . . . Partial Spotted 45 | . . . . . . . . . . . . . . 15 . . . . 15 . 15 . . Lose Combat Pursuer 855 | . . 30 . 75 . 75 . . . . 30 . . . . . 30 225 60 120 . 135 75 Influence Decreases 12253 | 15 379 192 82 395 265 691 346 165 . 5 396 310 334 822 795 431 1142 2320 1204 881 162 301 620 Entered New Map 3489 | . . 70 30 . 43 1 126 . . . . 185 . 170 405 321 212 1038 584 166 82 24 32 Time Decay 6477 | 15 379 102 52 365 222 550 200 165 . 5 326 70 204 562 310 70 530 542 550 537 80 269 372 Lost Part 804 | . . 20 . 20 . 40 . . . . 50 . 10 10 . . . 280 70 80 . 8 216 Lost Ally 785 | . . . . 10 . 100 20 . . . 20 55 120 80 80 40 250 10 . . . . . Purge Threat 698 | . . . . . . . . . . . . . . . . . 150 450 . 98 . . . Squads Dispatched 71 | . 4 . . . . 8 . . . . 3 . 6 2 . . 16 10 7 7 . 5 3 Investigation 10 | . 3 . . . . 1 . . . . . . 2 . . . 1 . 3 . . . . Extermination 23 | . . . . . . 4 . . . . 1 . 1 . . . 3 3 . 4 . 4 3 Reinforcement 29 | . 1 . . . . 3 . . . . 2 . 3 2 . . 7 4 4 2 . 1 . Assault 9 | . . . . . . . . . . . . . . . . . 5 3 . 1 . . . Garrison . | . . . . . . . . . . . . . . . . . . . . . . . . Intercept . | . . . . . . . . . . . . . . . . . . . . . . . . Searches Triggered . | . . . . . . . . . . . . . . . . . . . . . . . . Construction Impeded 12 | . . . . . . 3 . . . . 2 . 2 2 . . 2 1 . . . . . Haulers Reinforced 3 | . . . . . . . . . . . . . 1 . . . . . 2 . . . . Active Scanning Responses . | . . . . . . . . . . . . . . . . . . . . . . . . Cargo Convoy Interrupts 1 | . . . . . . . . . . . 1 . . . . . . . . . . . . Stealth | -11 -10 -10 -8 -8 -8 -6 -6 -6 -6 -5 -5 -5 -5 -5 -5 -5 -5 -4 -3 -3 -2 -2 -2 --------- Run | Yrd Mat Sub Mat Sto Rec Fac Low Low Dat Pro Fac Was Fac Ext Cet Arc Hub Fac Res Tes Res Qua Frg Distress Signals 39 | . 3 . . 3 3 . . . . . 3 . 1 3 2 . 5 7 5 2 . . 2 Communications Jammed . | . . . . . . . . . . . . . . . . . . . . . . . . Distress Signals . | . . . . . . . . . . . . . . . . . . . . . . . . Times Spotted 432 | . 24 15 1 12 . 28 7 8 3 3 35 5 10 28 10 6 51 66 37 33 . 14 36 Peak Tracking Total 10 | . 4 4 1 5 1 4 6 4 3 1 10 2 4 5 5 2 9 10 6 5 . 6 8 Tactical Retreats 34 | . . 1 . 4 . 3 . . . . 2 . . . . . 2 9 3 3 . 4 3 Traps | -11 -10 -10 -8 -8 -8 -6 -6 -6 -6 -5 -5 -5 -5 -5 -5 -5 -5 -4 -3 -3 -2 -2 -2 ------- Run | Yrd Mat Sub Mat Sto Rec Fac Low Low Dat Pro Fac Was Fac Ext Cet Arc Hub Fac Res Tes Res Qua Frg Traps Triggered 25 | . 8 1 . . . 1 . . . . 1 . . 6 . . 1 2 2 2 . . 1 Indirectly 1 | . . . . . . . . . . . . . . . . . 1 . . . . . . Trap Hack Attempts . | . . . . . . . . . . . . . . . . . . . . . . . . Triggered . | . . . . . . . . . . . . . . . . . . . . . . . . Disarmed . | . . . . . . . . . . . . . . . . . . . . . . . . Reprogrammed . | . . . . . . . . . . . . . . . . . . . . . . . . Reused . | . . . . . . . . . . . . . . . . . . . . . . . . Traps Extracted . | . . . . . . . . . . . . . . . . . . . . . . . . Installed 1 | . . . . . . 1 . . . . . . . . . . . . . . . . . Triggered . | . . . . . . . . . . . . . . . . . . . . . . . . Most Traps Carried 1 | . . 1 1 . 1 1 . . . . . . . . . . . . . . . . . Machines | -11 -10 -10 -8 -8 -8 -6 -6 -6 -6 -5 -5 -5 -5 -5 -5 -5 -5 -4 -3 -3 -2 -2 -2 ---------- Run | Yrd Mat Sub Mat Sto Rec Fac Low Low Dat Pro Fac Was Fac Ext Cet Arc Hub Fac Res Tes Res Qua Frg Machines Disabled 73 | . 2 1 . 1 . 4 . . 1 . 3 . 5 9 1 3 26 4 2 4 . 3 4 Max in Single Turn 13 | . 1 1 . 1 . 1 . . 1 . 2 . 1 2 1 . 13 2 1 1 . 1 1 Garrison Access 5 | . . . . . . . . . . . . . . . . . 2 . 2 1 . . . Network Hub 3 | . . . . . . . . . . . . . . . . . 3 . . . . . . Machines Repaired . | . . . . . . . . . . . . . . . . . . . . . . . . Machines Dismantled 3 | . . . . . . . . . . . . . . 2 . . 1 . . . . . . Machines Sabotaged . | . . . . . . . . . . . . . . . . . . . . . . . . Overloaded Fab Kills . | . . . . . . . . . . . . . . . . . . . . . . . . Hacking | -11 -10 -10 -8 -8 -8 -6 -6 -6 -6 -5 -5 -5 -5 -5 -5 -5 -5 -4 -3 -3 -2 -2 -2 --------- Run | Yrd Mat Sub Mat Sto Rec Fac Low Low Dat Pro Fac Was Fac Ext Cet Arc Hub Fac Res Tes Res Qua Frg Machines Accessed 90 | . 6 1 . 4 10 4 . . 4 1 5 . 3 11 4 . 6 6 4 8 1 7 5 Terminals 64 | . 6 . . 3 5 1 . . . 1 3 . 2 11 4 . 4 4 3 6 . 6 5 Fabricators 3 | . . . . . . 1 . . . . 1 . 1 . . . . . . . . . . Repair Stations 1 | . . . . 1 . . . . . . . . . . . . . . . . . . . Recycling Units 9 | . . . . . 3 2 . . . . 1 . . . . . . 2 . . 1 . . Scanalyzers 2 | . . . . . . . . . . . . . . . . . . . . 1 . 1 . Garrison Access 4 | . . . . . . . . . . . . . . . . . 2 . 1 1 . . . Total Hacks 421 | . 14 9 . 11 55 7 . . 30 2 10 . 6 21 8 . 15 42 24 51 4 64 48 Successful 299 | . 4 9 . 5 50 1 . . 30 2 4 . 1 8 5 . 7 26 14 43 4 49 37 Failed 121 | . 9 . . 6 5 6 . . . . 6 . 5 13 3 . 8 16 10 8 . 15 11 Catastrophic 19 | . 4 . . . . 1 . . . . 1 . 2 4 . . 3 1 1 1 . 1 . Database Lockouts 1 | . 1 . . . . . . . . . . . . . . . . . . . . . . Manual 173 | . 10 . . 1 14 4 . . . . 4 . . 1 2 . 8 22 13 27 3 37 27 Terminals 305 | . 14 . . 6 21 2 . . . 2 7 . 4 21 8 . 11 33 22 48 . 58 48 Fabricators 5 | . . . . . . 1 . . . . 2 . 2 . . . . . . . . . . Repair Stations 5 | . . . . 5 . . . . . . . . . . . . . . . . . . . Recycling Units 28 | . . . . . 10 4 . . . . 1 . . . . . . 9 . . 4 . . Scanalyzers 7 | . . . . . . . . . . . . . . . . . . . . 1 . 6 . Garrison Access 8 | . . . . . . . . . . . . . . . . . 4 . 2 2 . . . Terminal Hacks 186 | . 4 9 . 3 32 . . . 30 2 2 . 1 8 5 . 2 14 5 23 . 27 19 Record 77 | . 1 8 . . 27 . . . 11 2 . . . 3 4 . . 5 1 2 . 12 1 Part Schematic 15 | . 2 . . . 1 . . . 12 . . . . . . . . . . . . . . Robot Schematic 4 | . . . . . . . . . 4 . . . . . . . . . . . . . . Robot Analysis 4 | . . . . . 1 . . . . . . . . 1 . . . . 1 . . 1 . Prototype ID Bank 10 | . 1 . . . 1 . . . 3 . . . . . . . . 1 . 2 . 1 1 Open Door 7 | . . . . 3 . . . . . . . . . 3 1 . . . . . . . . Level Access Points 3 | . . . . . . . . . . . . . . . . . . . . 1 . 1 1 Branch Access Points 4 | . . . . . . . . . . . . . 1 . . . . 1 1 . . 1 . Emergency Access Points 8 | . . . . . . . . . . . . . . . . . . . . 2 . 2 4 Machine Index 1 | . . . . . . . . . . . . . . . . . . . . 1 . . . Terminal Index 4 | . . . . . . . . . . . 1 . . . . . . . . 1 . 1 1 Garrison Index 1 | . . . . . . . . . . . . . . . . . . . . 1 . . . Alert Level 9 | . . . . . . . . . . . . . . 1 . . 1 2 1 2 . 1 1 Unreport Threat 5 | . . . . . . . . . . . . . . . . . 1 3 . 1 . . . Locate Traps 6 | . . . . . . . . . . . 1 . . . . . . 1 . 2 . . 2 Security Status 2 | . . . . . . . . . . . . . . . . . . . . . . 1 1 Recall Extermination 7 | . . . . . . . . . . . . . . . . . . . . 2 . 3 2 Registered Components 2 | . . . . . . . . . . . . . . . . . . . . 1 . 1 . Registered Prototypes 2 | . . . . . . . . . . . . . . . . . . . . . . 1 1 Zone Layout 8 | . . . . . . . . . . . . . . . . . . 1 1 1 . 1 4 Proto ID Catalog 1 | . . 1 . . . . . . . . . . . . . . . . . . . . . Protovariant Controls 4 | . . . . . . . . . . . . . . . . . . . . 4 . . . Release Object 2 | . . . . . 2 . . . . . . . . . . . . . . . . . . Fabricator Hacks 1 | . . . . . . . . . . . 1 . . . . . . . . . . . . Build 1 | . . . . . . . . . . . 1 . . . . . . . . . . . . Repair Station Hacks 2 | . . . . 2 . . . . . . . . . . . . . . . . . . . Scan Component 1 | . . . . 1 . . . . . . . . . . . . . . . . . . . Repair 1 | . . . . 1 . . . . . . . . . . . . . . . . . . . Recycling Unit Hacks 11 | . . . . . 6 . . . . . 1 . . . . . . 3 . . 1 . . Report Inventory 6 | . . . . . 3 . . . . . . . . . . . . 2 . . 1 . . Retrieve Matter 1 | . . . . . 1 . . . . . . . . . . . . . . . . . . Retrieve Components 4 | . . . . . 2 . . . . . 1 . . . . . . 1 . . . . . Scanalyzer 6 | . . . . . . . . . . . . . . . . . . . . 1 . 5 . Insert Component 6 | . . . . . . . . . . . . . . . . . . . . 1 . 5 . Garrison Access Hacks 3 | . . . . . . . . . . . . . . . . . 1 . 1 1 . . . Seal Access 3 | . . . . . . . . . . . . . . . . . 1 . 1 1 . . . Unauthorized Hacks 90 | . . . . . 12 1 . . . . . . . . . . 4 9 8 18 3 17 18 Terminals 80 | . . . . . 9 . . . . . . . . . . . 4 6 8 18 . 17 18 Track 17 | . . . . . . . . . . . . . . . . . 3 1 1 4 . 3 5 Assimilate 3 | . . . . . . . . . . . . . . . . . . 1 . . . 2 . Botnet 25 | . . . . . 4 . . . . . . . . . . . 1 2 3 5 . 5 5 Detonate 1 | . . . . . . . . . . . . . . . . . . . . . . . 1 Disrupt 5 | . . . . . . . . . . . . . . . . . . . . 2 . 1 2 Operators 6 | . . . . . . . . . . . . . . . . . . 1 1 2 . 1 1 Skim 23 | . . . . . 5 . . . . . . . . . . . . 1 3 5 . 5 4 Fabricators 1 | . . . . . . 1 . . . . . . . . . . . . . . . . . Download 1 | . . . . . . 1 . . . . . . . . . . . . . . . . . Repair Stations . | . . . . . . . . . . . . . . . . . . . . . . . . Recycling Units 9 | . . . . . 3 . . . . . . . . . . . . 3 . . 3 . . Reject 2 | . . . . . . . . . . . . . . . . . . 1 . . 1 . . Recyclers 2 | . . . . . . . . . . . . . . . . . . 1 . . 1 . . Mask 2 | . . . . . . . . . . . . . . . . . . 1 . . 1 . . Tunnel 3 | . . . . . 3 . . . . . . . . . . . . . . . . . . Scanalyzers . | . . . . . . . . . . . . . . . . . . . . . . . . Garrison Access . | . . . . . . . . . . . . . . . . . . . . . . . . Data Cores Recovered . | . . . . . . . . . . . . . . . . . . . . . . . . Used . | . . . . . . . . . . . . . . . . . . . . . . . . Hacking Detections 55 | . 5 . . 1 5 3 . . . . 5 . 3 9 1 . 5 5 3 3 1 3 3 Full Trace Events 5 | . 2 . . . . . . . . . . . 2 . . . 1 . . . . . . Feedback Events . | . . . . . . . . . . . . . . . . . . . . . . . . Feedback Blocked . | . . . . . . . . . . . . . . . . . . . . . . . . Robot Schematics Acquired 5 | . . . . . . . . . 4 . . . . . . . . . . 1 . . . Robots Built . | . . . . . . . . . . . . . . . . . . . . . . . . Authchips . | . . . . . . . . . . . . . . . . . . . . . . . . Time . | . . . . . . . . . . . . . . . . . . . . . . . . Total Robot Build Rating . | . . . . . . . . . . . . . . . . . . . . . . . . Part Schematics Acquired 22 | . 2 . . . 1 1 . . 12 . . . . . . . . . . 6 . . . Parts Built 2 | . . . . . . . . . . . 2 . . . . . . . . . . . . Authchips . | . . . . . . . . . . . . . . . . . . . . . . . . Time 64 | . . . . . . . . . . . 64 . . . . . . . . . . . . Total Part Build Rating 16 | . . . . . . . . . . . 16 . . . . . . . . . . . . Part Studies Acquired . | . . . . . . . . . . . . . . . . . . . . . . . . Parts Repaired 1 | . . . . 1 . . . . . . . . . . . . . . . . . . . Time 44 | . . . . 44 . . . . . . . . . . . . . . . . . . . Parts Recycled . | . . . . . . . . . . . . . . . . . . . . . . . . Recycled Matter . | . . . . . . . . . . . . . . . . . . . . . . . . Retrieved Matter . | . . . . . . . . . . . . . . . . . . . . . . . . Retrieved Components 14 | . . . . . 12 . . . . . 1 . . . . . . 1 . . . . . Parts Scanalyzed . | . . . . . . . . . . . . . . . . . . . . . . . . Part Schematics Acquired . | . . . . . . . . . . . . . . . . . . . . . . . . Parts Damaged . | . . . . . . . . . . . . . . . . . . . . . . . . Bothacking | -11 -10 -10 -8 -8 -8 -6 -6 -6 -6 -5 -5 -5 -5 -5 -5 -5 -5 -4 -3 -3 -2 -2 -2 ------------ Run | Yrd Mat Sub Mat Sto Rec Fac Low Low Dat Pro Fac Was Fac Ext Cet Arc Hub Fac Res Tes Res Qua Frg Used RIF Installer . | . . . . . . . . . . . . . . . . . . . . . . . . Robots Hacked . | . . . . . . . . . . . . . . . . . . . . . . . . Non-combat . | . . . . . . . . . . . . . . . . . . . . . . . . Combat . | . . . . . . . . . . . . . . . . . . . . . . . . Robot Hacks Applied . | . . . . . . . . . . . . . . . . . . . . . . . . Relay Couplers Released 6 | . . . . . . . . . . . . . . . . . 2 . 2 2 . . . Machine Destruction 6 | . . . . . . . . . . . . . . . . . 2 . 2 2 . . . Fabnet Peak Effective % . | . . . . . . . . . . . . . . . . . . . . . . . . Robots Rewired 24 | . . . . . 7 . . . . . 1 . . 15 . . . . . 1 . . . Allies Hacked 2 | . . . . . . 2 . . . . . . . . . . . . . . . . . Hacks Repelled . | . . . . . . . . . . . . . . . . . . . . . . . . Allies | -11 -10 -10 -8 -8 -8 -6 -6 -6 -6 -5 -5 -5 -5 -5 -5 -5 -5 -4 -3 -3 -2 -2 -2 -------- Run | Yrd Mat Sub Mat Sto Rec Fac Low Low Dat Pro Fac Was Fac Ext Cet Arc Hub Fac Res Tes Res Qua Frg Total Allies 66 | . . . . 10 7 . . . . . 1 19 . 21 5 . . 1 . 1 . 1 . Largest Group 22 | . . . . 10 17 17 11 9 9 . 1 18 16 21 22 19 17 1 . 1 . 1 . Highest-Rated Group 1121 | . . . . 173 332 332 235 167 167 . 20 652 577 777 1121 859 814 10 . 47 . 45 . Highest-Rated Ally 159 | . . . . 29 34 34 34 34 34 . 20 50 46 159 159 96 96 10 . 47 . 45 . Total Orders 57 | . . . . 7 7 7 3 . 13 . 2 1 . 4 6 3 3 . . . . 1 . STAY 27 | . . . . 3 4 2 2 . 7 . . . . 2 4 1 2 . . . . . . ROAM 1 | . . . . . . . . . . . . . . . . . . . . . . 1 . FOLLOW 22 | . . . . 3 3 2 1 . 6 . . . . 2 2 2 1 . . . . . . EXPLORE 5 | . . . . 1 . 2 . . . . 1 1 . . . . . . . . . . . RETURN 2 | . . . . . . 1 . . . . 1 . . . . . . . . . . . . Ally Attacks 812 | . . . . 28 36 33 28 32 27 . . 103 73 189 49 37 172 . . 5 . . . Total Damage 18474 | . . . . 331 447 499 1268 520 474 . . 2319 2082 3094 1831 775 4690 . . 144 . . . Kills 115 | . . . . 5 5 4 8 3 1 . . 5 11 21 10 5 36 . . 1 . . . Allies Corrupted 3 | . . . . . . . . . . . . . 1 . . . 2 . . . . . . Allies Melted 1 | . . . . . . . . . . . . . . . . . 1 . . . . . . Intel | -11 -10 -10 -8 -8 -8 -6 -6 -6 -6 -5 -5 -5 -5 -5 -5 -5 -5 -4 -3 -3 -2 -2 -2 ------- Run | Yrd Mat Sub Mat Sto Rec Fac Low Low Dat Pro Fac Was Fac Ext Cet Arc Hub Fac Res Tes Res Qua Frg Active Infowar (turns) 14671 | 57 1473 248 226 697 2 . . . 2 . 738 208 444 1675 680 146 1496 926 1590 1582 174 969 1338 Optics 4714 | . . 3 . . 2 . . . . . . . . . . . . . 654 1582 174 961 1338 Sensors 921 | . . . . . . . . . . . . . 34 417 2 . . 468 . . . . . Terrain 1098 | 19 . . 226 697 . . . . 2 . 79 . . . . . . 2 . 73 . . . Seismic 5110 | 38 1473 245 . . . . . . . . . . . . . . . 153 1542 409 173 969 108 Decoding 5871 | . . . . . . . . . . . 659 208 444 1675 680 146 1496 563 . . . . . Machine Analysis 519 | . . . . . . . . . . . . . . . . . . 110 409 . . . . Cloaking 86 | . . . . . . . . . . . . . . . . . . . . . . 86 . Jamming 47 | . . . . . . . . . . . . . . . . . . 47 . . . . . Robot Analysis Total 4 | . . . . . 1 . . . . . . . . 1 . . . . 1 . . 1 . Derelict Logs Recovered 6 | . . 1 . . . . 2 2 . 1 . . . . . . . . . . . . . Drone Launches 5 | . . . . 1 . 1 . . . . 2 1 . . . . . . . . . . . Drone Recoveries 2 | . . . . . . 1 . . . . 1 . . . . . . . . . . . . Decoded 0b10 Intel 122 | . . . . . . . . . . . 18 5 15 32 4 2 31 15 . . . . . Traps 19 | . . . . . . . . . . . 6 . . 9 . . 3 1 . . . . . Emergency Access 13 | . . . . . . . . . . . 1 . 1 2 . . 7 2 . . . . . Items 65 | . . . . . . . . . . . 8 5 11 13 . . 18 10 . . . . . Machines 18 | . . . . . . . . . . . 2 . 3 7 3 1 1 1 . . . . . Patrols 5 | . . . . . . . . . . . 1 . . 1 . . 2 1 . . . . . Exits 2 | . . . . . . . . . . . . . . . 1 1 . . . . . . . Exploration | -11 -10 -10 -8 -8 -8 -6 -6 -6 -6 -5 -5 -5 -5 -5 -5 -5 -5 -4 -3 -3 -2 -2 -2 ------------- Run | Yrd Mat Sub Mat Sto Rec Fac Low Low Dat Pro Fac Was Fac Ext Cet Arc Hub Fac Res Tes Res Qua Frg Turns Passed 26690 | 113 1481 2282 227 1014 3832 1618 1492 601 840 539 739 208 444 1675 680 146 1496 1547 1590 1582 174 969 1401 Spaces Moved 15164 | 70 777 1492 123 320 1512 879 742 368 448 345 479 136 342 1142 364 106 838 872 1079 1070 179 872 609 Core 45 | 1 1 . . . . . . . . . . . . . . . . . . . . . 43 Treads 3711 | . 692 25 . 283 1213 . . . . . 16 136 342 375 . . . 92 . . . 513 24 Legs 2728 | . . . . . . . . . . . . . . . . . 28 272 1079 807 . . 542 Wheels 4537 | 69 84 1467 123 37 104 287 742 368 448 345 463 . . . . . . . . . . . . Hover 4088 | . . . . . 195 543 . . . . . . . 767 364 106 810 508 . 257 179 359 . Flight 55 | . . . . . . 49 . . . . . . . . . . . . . 6 . . . Fastest Speed 50 | 50 90 80 131 150 149 95 131 152 131 131 102 102 102 90 90 90 90 55 55 73 73 73 50 Average Speed 128 | 90 152 130 136 241 204 139 151 152 147 131 115 121 102 93 104 96 111 110 106 102 73 73 107 Slowest Speed 360 | 100 300 215 245 360 225 226 173 152 152 131 144 144 102 102 111 111 129 239 250 250 73 73 209 Overloaded Moves . | . . . . . . . . . . . . . . . . . . . . . . . . Propulsion Burnouts . | . . . . . . . . . . . . . . . . . . . . . . . . Robots Hopped . | . . . . . . . . . . . . . . . . . . . . . . . . Potential Cave-ins 52 | . . . . . . . . . . . . . . 1 . . . 4 2 . . . 45 Cave-ins Triggered . | . . . . . . . . . . . . . . . . . . . . . . . . Exploration Rate (%) 50 | 4 96 84 10 36 98 17 70 54 80 54 9 80 9 89 79 74 59 23 20 85 8 57 24 Regions Visited 23 Branch Regions 14 Pre-discovered Areas 7 | . . . . . 4 . . . 1 . . . . . . . . . . 1 . 1 . Known Exits Taken 11 | . . . 1 . . 1 1 1 . 1 . . 1 . . . 1 1 1 1 . 1 . Unknown Exits Taken 10 | 1 1 1 . 1 1 . . . 1 . . . . 1 1 1 . . . . 1 . . Scrap Searched 15 | . . 9 . . . . 3 2 . 1 . . . . . . . . . . . . . Spaces Dug 263 | . 4 12 3 . 1 1 1 . 1 . 17 2 31 57 . . 7 81 6 6 5 26 2 Terrain Destroyed 1194 | . 24 33 3 4 1 63 7 5 1 . 69 2 81 105 1 . 486 247 7 16 5 28 6 Melee 89 | . 4 12 2 . 1 1 1 . 1 . 4 2 4 2 . . 7 14 6 5 5 16 2 Projectile 70 | . 7 . 1 . . 2 . . . . . . 1 9 1 . 15 16 . 2 . 12 4 AOE 1033 | . 13 21 . 4 . 59 6 5 . . 65 . 76 94 . . 464 217 . 9 . . . Terrain Rammed . | . . . . . . . . . . . . . . . . . . . . . . . . Walls Destroyed . | . . . . . . . . . . . . . . . . . . . . . . . . Machines Disabled . | . . . . . . . . . . . . . . . . . . . . . . . . Actions | -11 -10 -10 -8 -8 -8 -6 -6 -6 -6 -5 -5 -5 -5 -5 -5 -5 -5 -4 -3 -3 -2 -2 -2 --------- Run | Yrd Mat Sub Mat Sto Rec Fac Low Low Dat Pro Fac Was Fac Ext Cet Arc Hub Fac Res Tes Res Qua Frg Total 20738 | 101 931 1672 171 531 2259 1128 1100 399 585 432 619 172 415 1672 630 145 1141 1232 1450 1417 214 1111 1211 Wait 3183 | 11 37 14 11 159 513 81 304 13 81 80 37 22 46 252 205 31 118 113 250 162 27 156 460 Move 15142 | 69 776 1491 122 319 1511 878 741 367 447 344 479 135 341 1141 363 105 837 871 1078 1069 178 871 609 Hop . | . . . . . . . . . . . . . . . . . . . . . . . . Pick Up 178 | 6 8 22 7 4 12 14 5 1 2 2 11 2 1 6 7 1 10 19 5 13 2 14 4 Fast Attach 201 | 7 9 11 5 5 12 11 12 2 7 . 11 2 2 12 7 2 6 26 22 15 . 2 13 Attach 118 | . 3 6 4 5 6 4 4 3 8 1 14 1 . 7 2 1 5 24 3 5 2 2 8 Detach 115 | . 2 3 2 2 16 3 5 4 10 3 11 1 2 10 6 . 6 9 6 8 . . 6 Swap 98 | 1 7 25 2 8 1 2 1 1 3 . 1 . 2 9 3 1 7 16 1 5 . 2 . Drop 241 | . 13 14 8 6 31 19 17 1 5 1 13 3 2 16 15 2 13 19 13 21 . 8 1 Fire 611 | 7 46 42 6 23 3 105 10 7 7 . 16 4 12 44 6 1 34 57 66 46 . 26 43 Melee 504 | . 29 44 4 . 7 9 1 . 15 1 24 2 7 13 16 1 96 78 6 54 5 30 62 Ram . | . . . . . . . . . . . . . . . . . . . . . . . . Kick . | . . . . . . . . . . . . . . . . . . . . . . . . Crush 1 | . 1 . . . . . . . . . . . . . . . . . . . . . . Escape Stasis 83 | . . . . . . . . . . . . . . 67 . . . . . 11 . . 5 Rewire 237 | . . . . . 147 1 . . . . 2 . . 79 . . . . . 8 . . . Trap 1 | . . . . . . 1 . . . . . . . . . . . . . . . . . Miscellaneous 25 | . . . . . . . . . . . . . . 16 . . 9 . . . . . . Route ------- -11/Scrapyard -10/Materials (discovered 5 exits: [*Mat x3] / [*Min] / *Sub) -10/Subcaves (discovered 2 exits: [*Mat] / [*Scr]) -8/Materials -8/Storage -8/Recycling -6/Factory (discovered 6 exits: Fac x4 / *Low x2) -6/Lower Caves -6/Lower Caves (discovered 2 exits: *Fac / *Dat) -6/Data Miner -5/Proximity Caves -5/Factory (discovered 2 exits: Ext x2) -5/Waste -5/Factory (discovered 4 exits: *Upp x2 / *Ext x2) -5/Extension (discovered 2 exits: *Fac / *Cet) -5/Cetus (discovered 2 exits: *Fac / [*Arc]) -5/Archives (discovered 2 exits: *Fac / *Hub) -5/Hub_04(d) (discovered 2 exits: *Fac x2) -4/Factory (discovered 4 exits: *Res / Upp x2 / Arm) -3/Research (discovered 3 exits: *Res / *Tes x2) -3/Testing -2/Research (discovered 4 exits: *Acc x3 / *Qua) -2/Quarantine (discovered 3 exits: Acc / *Sec / *Frg) -2/Protoforge (discovered 1 exit: Acc) History --------- Turn | Location | Event 13 | -11/Scrapyard | Discovered new exit (range 16) 114 | -11/Scrapyard | Entered Materials 302 | -10/Materials | Build established: Mutant 579 | -10/Materials | Discovered new exit (range 6) 714 | -10/Materials | Discovered new exit (range 8) 987 | -10/Materials | Discovered new exit (range 14) 1089 | -10/Materials | Central database locked down 1192 | -10/Materials | Discovered new exit (range 9) 1560 | -10/Materials | Discovered new exit (range 3) 1595 | -10/Materials | Entered Subcaves 1596 | -10/Subcaves | Approached by a straggling Scientist 1649 | -10/Subcaves | Learned 4 Materials zone layouts 1670 | -10/Subcaves | A swath of the cavern ceiling suddenly collapsed 1949 | -10/Subcaves | Discovered new exit (range 15) 1961 | -10/Subcaves | Shifting Twisted Machinery released Sub. Beam Cannon 2088 | -10/Subcaves | Shifting Twisted Machinery released Mak. Kinetic Plating 2251 | -10/Subcaves | Visited 4L-MR0's lab 2267 | -10/Subcaves | Found Power Bank 2508 | -10/Subcaves | Disturbed a concealed Subdweller 2536 | -10/Subcaves | Core integrity fell below 50% 2910 | -10/Subcaves | Ambushed by Subdweller buried in earth 3032 | -10/Subcaves | Shifting Twisted Machinery released Sub. Laser 3658 | -10/Subcaves | Disturbed a concealed Subdweller 3730 | -10/Subcaves | A swath of the cavern ceiling suddenly collapsed 3877 | -10/Subcaves | Entered Materials 3877 | -8/Materials | Evolved 4 slots: Propulsion x1, Utility x3 3878 | -8/Materials | Identified exit to Storage 4104 | -8/Materials | Entered Storage 4177 | -8/Storage | Assisted by bots powering up and referring to "LRC-V3" 4221 | -8/Storage | Lost 5 parts (1p2n1u1w) 4460 | -8/Storage | Build established: Commander-Mutant 4863 | -8/Storage | Repaired Energy Filter? 5091 | -8/Storage | Used back door to open Recycling access 5091 | -8/Storage | Discovered new exit (range 4) 5118 | -8/Storage | Entered Recycling 5118 | -8/Recycling | Accompanied by 10 allies 5709 | -8/Recycling | Learned location of 3 exits from Factory 5766 | -8/Recycling | Learned location of 1 exit from Storage 5812 | -8/Recycling | Learned 4 Lower Caves zone layouts 5850 | -8/Recycling | Learned 2 Storage zone layouts 5929 | -8/Recycling | Learned Storage security intel 6011 | -8/Recycling | Learned location of 3 exits from Factory 6081 | -8/Recycling | Discovered new exit (range 5) 6510 | -8/Recycling | Entered Scraplab 6529 | -8/Recycling | Found Prototype Device 6529 | -8/Recycling | Identified Scrap Engine 7701 | -8/Recycling | Build established: Commander-Construct 8950 | -8/Recycling | Entered Factory 8950 | -6/Factory | Accompanied by 17 allies 8950 | -6/Factory | Evolved 4 slots: Propulsion x1, Utility x2, Weapon x1 8951 | -6/Factory | Identified exit to Lower Caves 8951 | -6/Factory | Identified exit to Factory 9517 | -6/Factory | Found Hvy. Reactive Plating 10117 | -6/Factory | Build established: Commander-Mutant 10541 | -6/Factory | P-60 Hacker assimilated allied Trooper 3f 10568 | -6/Factory | Entered Lower Caves 10568 | -6/Lower Caves | Accompanied by 11 allies 10691 | -6/Lower Caves | Learned 8 Factory zone layouts 10733 | -6/Lower Caves | Attacked by a faux Warlord 10864 | -6/Lower Caves | Found Alien Artifact 11061 | -6/Lower Caves | Identified exit to Lower Caves 11454 | -6/Lower Caves | Encountered a Warlord checkpoint 12060 | -6/Lower Caves | Entered another Lower Caves area 12060 | -6/Lower Caves | Accompanied by 9 allies 12156 | -6/Lower Caves | Attracted the attention of an 0b10 checkpoint 12170 | -6/Lower Caves | Discovered exit to Factory (range 16) 12352 | -6/Lower Caves | Build established: Commander-Construct 12376 | -6/Lower Caves | Identified exit to Data Miner 12661 | -6/Lower Caves | Entered Data Miner 12661 | -6/Data Miner | Accompanied by 9 allies 12661 | -6/Data Miner | Discovered new exit (range 6) 12690 | -6/Data Miner | Met Data Miner 12718 | -6/Data Miner | Learned location of Section 7 (-2) 12718 | -6/Data Miner | Acquired the access code to Warlord's prototype stash 12744 | -6/Data Miner | Received God Mode back door access code from Data Miner 12753 | -6/Data Miner | Identified Core Expander 12753 | -6/Data Miner | Installed Core Expander, added new Power slot 13049 | -6/Data Miner | Build established: Commander-Mutant 13170 | -6/Data Miner | Data Conduit disabled 13224 | -6/Data Miner | Lost 3 allies 13283 | -6/Data Miner | Core integrity fell below 50% 13309 | -6/Data Miner | Lost 5 parts (3u2w) 13404 | -6/Data Miner | Found Prototype Device 13404 | -6/Data Miner | Identified Exp. Thermal Shield 13495 | -6/Data Miner | Build established: Mutant 13501 | -6/Data Miner | Entered Proximity Caves 13504 | -5/Proximity Caves | Spotter reported a threat 13787 | -5/Proximity Caves | Learned Factory garrison access intel 13885 | -5/Proximity Caves | Discovered exit to Factory (range 15) 14040 | -5/Proximity Caves | Entered Factory 14040 | -5/Factory | Evolved 2 slots: Utility x2 14041 | -5/Factory | Identified exit to Extension 14043 | -5/Factory | Loaded intel: 4 garrison access locations 14530 | -5/Factory | Build established: Hacker-Mutant 14625 | -5/Factory | Fabricated Enh. Force Lance? 14754 | -5/Factory | Cargo convoy interrupted 14779 | -5/Factory | Sucked down chute 14779 | -5/Factory | Entered Waste 14794 | -5/Waste | EMP discharged 14794 | -5/Waste | System corruption reached 10% 14802 | -5/Waste | Spotted C-40 Crusher 14806 | -5/Waste | Lost 3 parts (3u) 14818 | -5/Waste | Spotted C-40 Crusher 14824 | -5/Waste | Spotted C-40 Crusher 14861 | -5/Waste | Met Warlord forces unprepared to attack 14870 | -5/Waste | Destroyed C-40 Crusher 14876 | -5/Waste | Allies destroyed C-40 Crusher 14892 | -5/Waste | Found Unknown Protection 14894 | -5/Waste | EMP discharged 14907 | -5/Waste | Spotted C-40 Crusher 14910 | -5/Waste | Spotted C-40 Crusher 14910 | -5/Waste | Allies destroyed C-40 Crusher 14915 | -5/Waste | Allies destroyed C-40 Crusher 14922 | -5/Waste | Spotted C-40 Crusher 14938 | -5/Waste | Allies destroyed C-40 Crusher 14958 | -5/Waste | Discovered new exit (range 16) 14966 | -5/Waste | Allies destroyed C-40 Crusher 14987 | -5/Waste | Entered Factory 14987 | -5/Factory | Accompanied by 16 allies 15042 | -5/Factory | Build established: Mutant 15117 | -5/Factory | Identified exit to Upper Caves 15331 | -5/Factory | Lost 5 allies 15431 | -5/Factory | Entered Extension 15431 | -5/Extension | Accompanied by 5 allies 15991 | -5/Extension | Rescued a captive Derelict 16085 | -5/Extension | Build established: Commander-Mutant 16101 | -5/Extension | Rescued a captive Derelict 16102 | -5/Extension | Rescued a captive Derelict 16397 | -5/Extension | Spotted B-75 Beast 16414 | -5/Extension | Destroyed B-75 Beast 16418 | -5/Extension | Spotted B-75 Beast 16429 | -5/Extension | Allies destroyed B-75 Beast 16456 | -5/Extension | Lost 3 allies 16542 | -5/Extension | Rescued a captive Derelict 16818 | -5/Extension | Rescued a captive Derelict 16894 | -5/Extension | Core integrity fell below 50% 16983 | -5/Extension | Rescued A7 17009 | -5/Extension | Discovered new exit (range 10) 17011 | -5/Extension | Discovered new exit (range 11) 17045 | -5/Extension | Attached Power Bank, gained temporary slots: Power x3 17106 | -5/Extension | Entered Cetus 17106 | -5/Cetus | Accompanied by 21 allies (A7) 17111 | -5/Cetus | Acquired a Cetus Manufacturing Module code from A7 17119 | -5/Cetus | Spotted Cetus Guard 17119 | -5/Cetus | Spotted Cetus Guard 17120 | -5/Cetus | Spotted Cetus Guard 17120 | -5/Cetus | Spotted Cetus Guard 17135 | -5/Cetus | Allies destroyed Cetus Guard 17140 | -5/Cetus | Allies destroyed Cetus Guard 17140 | -5/Cetus | Allies destroyed Cetus Guard 17143 | -5/Cetus | Allies destroyed Cetus Guard 17171 | -5/Cetus | Lost 4 allies 17198 | -5/Cetus | Started Cetus Manufacturing Module 17209 | -5/Cetus | Escorted A7 to Cetus Mainframe 17223 | -5/Cetus | Manufactured an Enhanced Grunt 17248 | -5/Cetus | Manufactured an Enhanced Grunt 17273 | -5/Cetus | Manufactured an Enhanced Grunt 17298 | -5/Cetus | Manufactured an Enhanced Grunt 17323 | -5/Cetus | Manufactured an Enhanced Grunt 17349 | -5/Cetus | Found a strange terminal 17397 | -5/Cetus | Discovered new exit (range 15) 17423 | -5/Cetus | Identified exit to Factory 17424 | -5/Cetus | Spotted Cetus Guard 17425 | -5/Cetus | Spotted Cetus Guard 17430 | -5/Cetus | Spotted Cetus Guard 17431 | -5/Cetus | Allies destroyed Cetus Guard 17432 | -5/Cetus | Spotted Cetus Guard 17434 | -5/Cetus | Allies destroyed Cetus Guard 17435 | -5/Cetus | Allies destroyed Cetus Guard 17437 | -5/Cetus | Allies destroyed Cetus Guard 17449 | -5/Cetus | Met Revision 17 17630 | -5/Cetus | Murdered A7 17634 | -5/Cetus | Extracted ID and sensor layout for unrecognized location from A7's data core 17786 | -5/Cetus | Entered Archives 17786 | -5/Archives | Accompanied by 20 allies 17848 | -5/Archives | Lost 3 allies 17858 | -5/Archives | Discovered new exit (range 15) 17932 | -5/Archives | Entered Hub_04(d) 17932 | -5/Hub_04(d) | Accompanied by 17 allies 18073 | -5/Hub_04(d) | Lost 5 allies 18317 | -5/Hub_04(d) | Discovered exit to Factory (range 10) 18471 | -5/Hub_04(d) | Discovered exit to Factory (range 7) 18570 | -5/Hub_04(d) | Spotted B-75 Beast 18596 | -5/Hub_04(d) | Allies destroyed B-75 Beast 18660 | -5/Hub_04(d) | Build established: Scavenger-Mutant 18868 | -5/Hub_04(d) | Identified Damper Plating 18889 | -5/Hub_04(d) | Network Hub disabled 18946 | -5/Hub_04(d) | Network Hub disabled 18946 | -5/Hub_04(d) | Spotted Lightning 18950 | -5/Hub_04(d) | Network Hub disabled 18950 | -5/Hub_04(d) | Spotted Lightning 18953 | -5/Hub_04(d) | Spotted Lightning 19007 | -5/Hub_04(d) | Spotted Lightning 19008 | -5/Hub_04(d) | Spotted Lightning 19009 | -5/Hub_04(d) | Spotted Lightning 19046 | -5/Hub_04(d) | Destroyed Lightning 19066 | -5/Hub_04(d) | System corruption reached 30% 19084 | -5/Hub_04(d) | Destroyed Lightning 19126 | -5/Hub_04(d) | Destroyed Lightning 19132 | -5/Hub_04(d) | First assault squad dispatched 19166 | -5/Hub_04(d) | Build established: Mutant 19218 | -5/Hub_04(d) | Destroyed Lightning 19225 | -5/Hub_04(d) | Found Prototype Device 19325 | -5/Hub_04(d) | Destroyed Lightning 19328 | -5/Hub_04(d) | Identified Exp. Phase Shifter 19330 | -5/Hub_04(d) | Found Exp. Phase Shifter 19334 | -5/Hub_04(d) | Found Prototype Processor 19373 | -5/Hub_04(d) | Destroyed Lightning 19428 | -5/Hub_04(d) | Entered Factory 19428 | -4/Factory | Evolved 2 slots: Utility x2 19433 | -4/Factory | Identified Exp. Targeting Computer 19534 | -4/Factory | Identified exit to Upper Caves 19534 | -4/Factory | Identified exit to Armory 19751 | -4/Factory | Build established: Scavenger-Mutant 19817 | -4/Factory | Destroyed 9 combat bots 19937 | -4/Factory | Lost 4 parts (2u2w) 20034 | -4/Factory | Lost 4 parts (1p3u) 20124 | -4/Factory | Lost 3 parts (3u) 20810 | -4/Factory | Discovered new exit (range 16) 20816 | -4/Factory | Lost 10 parts (1p3n2u4w) 20928 | -4/Factory | First assault squad dispatched 20975 | -4/Factory | Identified exit to Research 20975 | -4/Factory | Entered Research 20975 | -3/Research | Evolved 2 slots: Utility x2 21039 | -3/Research | Identified exit to Testing 21042 | -3/Research | Spotted B-86 Titan 21175 | -3/Research | Revision forces began assault on 0b10 21200 | -3/Research | Met up with Revision 17++ 21319 | -3/Research | Build established: Hacker-Mutant 21359 | -3/Research | Found Prototype Launcher 21359 | -3/Research | Identified Tesla Bomb Launcher 21362 | -3/Research | Found Tesla Bomb Launcher 21434 | -3/Research | Lost 4 parts (3u1w) 21675 | -3/Research | Research terminal network offline 21972 | -3/Research | Spotted Executioner 21976 | -3/Research | Destroyed Executioner 21993 | -3/Research | Found Exp. Targeting Computer 22025 | -3/Research | Found Prototype Processor 22025 | -3/Research | Identified Exp. Core Analyzer 22028 | -3/Research | Found Exp. Core Analyzer 22344 | -3/Research | Discovered new exit (range 11) 22560 | -3/Research | Spotted Executioner 22563 | -3/Research | Spotted Striker 22565 | -3/Research | Entered Testing 22619 | -3/Testing | Found Prototype Hackware 22619 | -3/Testing | Identified System Mapper 22647 | -3/Testing | Found Prototype Energy Cannon 22673 | -3/Testing | Spotted PL-R75HLVY8T0 22717 | -3/Testing | Destroyed PL-R75HLVY8T0 22730 | -3/Testing | Found Exp. Core Analyzer 22746 | -3/Testing | Lost 4 parts (1n2u1w) 22875 | -3/Testing | Spotted Striker 22893 | -3/Testing | Protovariant out of control (PG-5N5FYKVR3F) 22893 | -3/Testing | Unleashed a protovariant (PG-5N5FYKVR3F) 22893 | -3/Testing | Identified exit to Research 23008 | -3/Testing | Found Prototype Device 23232 | -3/Testing | Identified Exp. Focal Shield 23245 | -3/Testing | Found Prototype Device 23245 | -3/Testing | Identified Exp. Shield Generator 23399 | -3/Testing | Spotted Investigator 23400 | -3/Testing | Scanned by Researcher 23403 | -3/Testing | Destroyed Investigator 23417 | -3/Testing | Found Prototype Launcher 23417 | -3/Testing | Identified Containment Facilitator 23496 | -3/Testing | Learned Research repair station intel 23540 | -3/Testing | Learned Research trap positions 23544 | -3/Testing | Build established: Wizard-Mutant 23622 | -3/Testing | Learned Research emergency access door positions 23623 | -3/Testing | Learned 4 Research zone layouts 23630 | -3/Testing | Loaded intel: 4 trap records 23670 | -3/Testing | Learned Quarantine trap positions 23980 | -3/Testing | Core integrity fell below 50% 24147 | -3/Testing | Entered Research 24147 | -2/Research | Evolved 2 slots: Utility x2 24148 | -2/Research | Identified exit to Access 24150 | -2/Research | Loaded intel: 91 trap records 24152 | -2/Research | Loaded intel: 4 repair station locations 24183 | -2/Research | Discovered exit to Access (range 15) 24305 | -2/Research | Discovered new exit (range 7) 24321 | -2/Research | Entered Quarantine 24322 | -2/Quarantine | Loaded intel: 15 trap records 24498 | -2/Quarantine | Found Alien Reactor 24607 | -2/Quarantine | Found Alien Artifact 24645 | -2/Quarantine | Identified Subatomic Replicator 24645 | -2/Quarantine | Identified Matter Drive 24652 | -2/Quarantine | Found Prototype Processor 24660 | -2/Quarantine | Identified Exp. Signal Interpreter 24996 | -2/Quarantine | Learned Section 7 trap positions 25070 | -2/Quarantine | Learned 4 Section 7 zone layouts 25135 | -2/Quarantine | Identified exit to Protoforge 25135 | -2/Quarantine | Identified exit to Section 7 25185 | -2/Quarantine | Spotted Fortress 25192 | -2/Quarantine | Learned 4 Research zone layouts 25290 | -2/Quarantine | Entered Protoforge 25312 | -2/Protoforge | Spotted Hotshot 25316 | -2/Protoforge | Superfortress began startup sequence 25355 | -2/Protoforge | Spotted Hotshot 25355 | -2/Protoforge | Spotted Hotshot 25419 | -2/Protoforge | Spotted Hotshot 25419 | -2/Protoforge | Spotted Hotshot 25469 | -2/Protoforge | Destroyed Hotshot 25496 | -2/Protoforge | Lost 3 parts (2u1w) 25498 | -2/Protoforge | Destroyed Hotshot 25501 | -2/Protoforge | Destroyed Hotshot 25507 | -2/Protoforge | Destroyed Hotshot 25523 | -2/Protoforge | Spotted Hotshot 25523 | -2/Protoforge | Spotted Hotshot 25523 | -2/Protoforge | Spotted Hotshot 25523 | -2/Protoforge | Spotted Hotshot 25523 | -2/Protoforge | Spotted Hotshot 25561 | -2/Protoforge | Destroyed Hotshot 25579 | -2/Protoforge | Destroyed Hotshot 25612 | -2/Protoforge | Destroyed Hotshot 25634 | -2/Protoforge | Destroyed Hotshot 25688 | -2/Protoforge | Destroyed Hotshot 25776 | -2/Protoforge | Destroyed Hotshot 25794 | -2/Protoforge | System corruption reached 10% 25798 | -2/Protoforge | Core integrity fell below 50% 25827 | -2/Protoforge | Lost 7 parts (1n5u1w) 25848 | -2/Protoforge | Spotted Hotshot 25848 | -2/Protoforge | Spotted Hotshot 25848 | -2/Protoforge | Spotted Hotshot 26490 | -2/Protoforge | Found Prototype Ballistic Gun 26490 | -2/Protoforge | Identified Cep. XC Strikerail 26505 | -2/Protoforge | Found Prototype Device 26505 | -2/Protoforge | Identified Cep. Weapon Articulator 26508 | -2/Protoforge | Found Cep. Weapon Articulator 26521 | -2/Protoforge | Found Prototype Slashing Weapon 26521 | -2/Protoforge | Identified Exp. Terror Saw 26526 | -2/Protoforge | Found Exp. Terror Saw 26572 | -2/Protoforge | Additional patrols dispatched to research labs 26593 | -2/Protoforge | Spotted V383-b 26593 | -2/Protoforge | Spotted V772-b 26593 | -2/Protoforge | Spotted V343-k 26593 | -2/Protoforge | Spotted Decapitator 26593 | -2/Protoforge | Spotted Decapitator 26593 | -2/Protoforge | Spotted Decapitator 26594 | -2/Protoforge | Spotted Decapitator 26597 | -2/Protoforge | Destroyed Decapitator 26600 | -2/Protoforge | Destroyed Decapitator 26609 | -2/Protoforge | Destroyed Decapitator 26611 | -2/Protoforge | Found Prototype Launcher 26611 | -2/Protoforge | Identified Cep. Concussive Dispersal Blaster 26614 | -2/Protoforge | Destroyed Decapitator 26624 | -2/Protoforge | Spotted V346-d 26674 | -2/Protoforge | Core integrity fell below 20% 26691 | -2/Protoforge | Destroyed by Superfortress with Graviton Cannon Last Messages --------------- 26678_ Acquired 3 matter. 26681_ Superfortress breaks down Prototype Ballistic Cannon. 26681_ Superfortress assembles Prototype Ballistic Cannon. 26681_ Superfortress assembles Prototype Energy Cannon. 26683_ Penetrated by Railslug. 26683_ Thunder-Shield Exoskeleton destroyed. 26683_ Exp. Core Analyzer destroyed. 26683_ Critical hit (Blast). 26683_ Railslug penetrates Machine. 26686_ System corrupted: Heat flow error (+285). 26688_ Exp. Targeting Computer destroyed. 26688_ Critical hit (Blast). 26688_ Railslug penetrates Machine. 26688_ Acquired 9 matter. 26689_ K-01 Serf cleans the Machine. [Achievement: This Is Interesting...] [Achievement: Just Browsing] Map ----- +----------------------------------------------------+ | ?????????????????????????????????????????????????? | | ?????????????????????????????????????????????????? | | ?????????????????????????????????????????????????? | | ?????????????????????????????????????????????????? | | ?????????????????????????????????????????????????? | | ?????????????????????????????????????????????????? | | ?????????????????????????????????????????????????? | | ?????????????????????????????????????????????????? | | ?????????????????????????????????????????????????? | | ?????????????????????????????????????????????????? | | ?????????????????????????????????????????????????? | | ????????????????????????????? ?????????????? | | ????????????????????????????# #????????????? | | ????????????????????????????# #????????????? | | ????????????????????####?#### #########????? | | ????????????????????#"""""""" """"""""#????? | | ????????????????????# """" k """" #????? | | ????????????????????# "" "" #???## | | ????????????"""?????# T" "" #???#" | | ????????????====##### c #####! | | ???????????? | | ??????????? | | ??????????? FFF | | ?????????? FFF | | ?????????? % FFF | | ?????????? @ | | ?????????????????#### #####/ | | ????????????????????#""""""""""" """""" "#??#" | | ????????????????????#"""""""""""" """"""""""##??## | | ????????????????????#"""""""""""""""""""""""#????? | | ????????????????????#########################????? | | ?????????????????????????????????????????????????? | | ?????????????????????????????????????????????????? | | ?????????????????????????????????????????????????? | | ???????????????????????????#####???????########### | | ??????????????????????######"" ##??????# | | ????##????????????????# " #??????# "" "" | | ????#"################# " " " ##??????# """" " | | ?????# + " " "##?###???# "" " "" | | ?????# ############# " " "#### ##### """ | | ?????# #???#######?# #######" # "" | | ?????# #???# #?# # # " " "" | | ?????#### #???# #?#####+## # # "" | | ????????# ##### #????# # #### | | ####????# #????# T%+ " #??# " "" | | ############ #????# # "T" #??# " " "" | | #### ###????## ## """ #??# "" | | ######### #??# #???????# #########??# "" | | # + #??# #???????# #??????????# """"" | | # # #??# #???????# #??????????# " | +----------------------------------------------------+ Best States ------------- Heat Dissipation 94 Coolant Potential 100 Energy Generation 57 Energy Capacity 798 Matter Stores 300 Matter Capacity 550 Sight Range 20 Robot Scan Range 16 Terrain Scan Range 24 Terrain Scan Density 10 Jamming Range 14 Cloak Strength 3 Power Amplification 60 Additional Mass Support 20 Corruption Block 20 Armor Coverage 1600 Resistance: KI 40 Resistance: TH 30 Resistance: EM 90 Power Shielding 33 Propulsion Shielding 66 Weapon Shielding 90 Weapon Cycling 25 Melee Speed Boost 40 Phase Shifting 20 Evasion (%) 64 Targeting Accuracy 42 Core Analysis 12 Recoil Reduction 6 Energy Filtering 50 Kinecelleration 40 Offensive Hacking 46 Defensive Hacking 14 Authchip Count 3 Item Schematics ----------------- Hcp. Storage Unit | -10/Materials | Hacked Huge Storage Unit | -10/Materials | Hacked Arm. Huge Wheel | -8/Recycling | Hacked Nova Cannon | -6/Factory | Downloaded Combat Drone Bay | -6/Data Miner | Free Lgt. Regenerative Plating | -6/Data Miner | Free Enh. Flexi-carbon Leg | -6/Data Miner | Free Prc. Matter Filter | -6/Data Miner | Free Neutron Cannon | -6/Data Miner | Free Imp. Linear Gravjet | -6/Data Miner | Free Imp. System Guard | -6/Data Miner | Free Dispersion Rifle | -6/Data Miner | Free Hvy. Shock Bomb Launcher | -6/Data Miner | Free Hyp. Mass Driver | -6/Data Miner | Free Quantum Capacitor | -6/Data Miner | Free Com. HERF Cannon | -6/Data Miner | Free Prc. Phase Gun | -3/Testing | Archive Com. Tesla Bomb Launcher | -3/Testing | Archive Particle Accelerator | -3/Testing | Archive Exp. Coolant Injector | -3/Testing | Archive Gravity Neutralizer | -3/Testing | Archive Exp. Optical Array | -3/Testing | Archive Robot Schematics ------------------ B-60 Warrior | -6/Data Miner | Free Y-64 Sentinel | -6/Data Miner | Free I-36 Angel | -6/Data Miner | Free I-47 Archangel | -6/Data Miner | Free T-07 Excavator | -3/Testing | Archive Fabricated ------------ Enh. Force Lance | x2 | -5/Factory | Preloaded Repaired ---------- Energy Filter | 22% | -8/Storage Studied --------- None Alien Tech Used ----------------- Core Expander Matter Drive Achievements -------------- Decoder Ring Do Not Disturb Hammer Time Just Browsing Mistaken Identity Origins Perfect Aim Rampage Revolutionary Research Scrappetite Sprinter The Oracle This Is Interesting... Challenges ------------ None Game ------ Seed DiametricDecoyShell Manual? 0 Play Time 08:30:20 Cumulative 34.0 hours Start 2026.01.10 @ 10:54:53 End 2026.01.11 @ 17:25:17 Sessions 3 Manual Loads 0 Difficulty Rogue Special Mode None Game No. 5 Rogue 5 Adventurer 0 Explorer 0 Win Type - Total 1 Types 0/0/0/0/1/0/0/0/0/0 Lore% 27 Gallery% 33 Achievement% 38 Wizard Run 0 Options --------- Layout 1 ASCII 0 Keyboard 1 Movement Numpad Keybinds 0 Fullscreen 1 Font 24/Smallcaps Map View 50x35 Zoom Use 0% Tactical HUD 1 Map Filters NONE Filters NONE Steam 1 RUN: 244f88d8-34a9-4f3d-82c0-d37959b574d8